[Event "Titled Tuesday Blitz August 22 Late 2023"]
[White "luksona14"]
[Black "Karas, Marek"]
[BlackFideId "14928558"]
[WhiteElo "2576"]
[BlackElo "2402"]
[Result "0-1"]
[Round "3"]
[TimeControl "180+1"]
[Date "2023.08.22"]
[WhiteClock "0:01:08"]
[BlackClock "0:01:16"]
[Board "119"]

1. d4 {[%clk 0:02:55]}  Nf6 {[%clk 0:02:59]} 2. c4 {[%clk 0:02:56]}  c5 {[%clk 0:02:59]} 3. d5 {[%clk 0:02:56]}  b5 {[%clk 0:02:59]} 4. cxb5 {[%clk 0:02:47]}  a6 {[%clk 0:02:57]} 5. bxa6 {[%clk 0:02:46]}  e6 {[%clk 0:02:55]} 6. Nc3 {[%clk 0:02:47]}  exd5 {[%clk 0:02:54]} 7. Nxd5 {[%clk 0:02:41]}  Nxd5 {[%clk 0:02:55]} 8. Qxd5 {[%clk 0:02:40]}  Nc6 {[%clk 0:02:55]} 9. e4 {[%clk 0:02:36]}  Bxa6 {[%clk 0:02:55]} 10. Bxa6 {[%clk 0:02:35]}  Qa5+ {[%clk 0:02:56]} 11. Bd2 {[%clk 0:02:32]}  Qxa6 {[%clk 0:02:57]} 12. Bc3 {[%clk 0:02:30]}  Be7 {[%clk 0:02:43]} 13. Nf3 {[%clk 0:02:27]}  O-O {[%clk 0:02:39]} 14. Qd2 {[%clk 0:02:24]}  Nb4 {[%clk 0:02:09]} 15. Bxb4 {[%clk 0:02:20]}  cxb4 {[%clk 0:02:10]} 16. Qe2 {[%clk 0:02:21]}  Bf6 {[%clk 0:02:04]} 17. e5 {[%clk 0:02:19]}  Rfe8 {[%clk 0:01:59]} 18. Qxa6 {[%clk 0:02:13]}  Rxa6 {[%clk 0:02:00]} 19. O-O {[%clk 0:02:13]}  Bxe5 {[%clk 0:02:00]} 20. Nxe5 {[%clk 0:02:13]}  Rxe5 {[%clk 0:02:00]} 21. Rfd1 {[%clk 0:02:14]}  d5 {[%clk 0:01:56]} 22. b3 {[%clk 0:02:14]}  g6 {[%clk 0:01:53]} 23. Rd2 {[%clk 0:02:14]}  Ra5 {[%clk 0:01:48]} 24. f3 {[%clk 0:02:13]}  Re3 {[%clk 0:01:47]} 25. Kf2 {[%clk 0:02:11]}  Rxb3 {[%clk 0:01:46]} 26. axb3 {[%clk 0:02:09]}  Rxa1 {[%clk 0:01:47]} 27. Rxd5 {[%clk 0:02:10]}  Rb1 {[%clk 0:01:42]} 28. Rd3 {[%clk 0:02:10]}  Rb2+ {[%clk 0:01:42]} 29. Kg3 {[%clk 0:02:03]}  Kg7 {[%clk 0:01:42]} 30. h4 {[%clk 0:02:02]}  h5 {[%clk 0:01:42]} 31. Kh3 {[%clk 0:01:56]}  Kf6 {[%clk 0:01:42]} 32. g4 {[%clk 0:01:55]}  hxg4+ {[%clk 0:01:41]} 33. fxg4 {[%clk 0:01:54]}  Kg7 {[%clk 0:01:39]} 34. Kg3 {[%clk 0:01:53]}  Rb1 {[%clk 0:01:34]} 35. Kf3 {[%clk 0:01:52]}  Kf6 {[%clk 0:01:33]} 36. Ke4 {[%clk 0:01:51]}  Rg1 {[%clk 0:01:29]} 37. Rf3+ {[%clk 0:01:47]}  Ke6 {[%clk 0:01:28]} 38. Rf4 {[%clk 0:01:46]}  Rg3 {[%clk 0:01:21]} 39. g5 {[%clk 0:01:42]}  Rxb3 {[%clk 0:01:19]} 40. Rf6+ {[%clk 0:01:42]}  Ke7 {[%clk 0:01:19]} 41. Rb6 {[%clk 0:01:43]}  Rh3 {[%clk 0:01:18]} 42. Ke5 {[%clk 0:01:41]}  Rxh4 {[%clk 0:01:18]} 43. Rb7+ {[%clk 0:01:41]}  Kf8 {[%clk 0:01:19]} 44. Rb5 {[%clk 0:01:21]}  Kg7 {[%clk 0:01:17]} 45. Kd6 {[%clk 0:01:16]}  Rg4 {[%clk 0:01:16]} 46. Ke7 {[%clk 0:01:16]}  Rf4 {[%clk 0:01:15]} 47. Ke8 {[%clk 0:01:14]}  Rf5 {[%clk 0:01:14]} 48. Rxb4 {[%clk 0:01:14]}  Rxg5 {[%clk 0:01:14]} 49. Ke7 {[%clk 0:01:14]}  Re5+ {[%clk 0:01:14]} 50. Kd6 {[%clk 0:01:14]}  Re6+ {[%clk 0:01:15]} 51. Kd5 {[%clk 0:01:14]}  g5 {[%clk 0:01:15]} 52. Rg4 {[%clk 0:01:13]}  Kg6 {[%clk 0:01:15]} 53. Rg1 {[%clk 0:01:14]}  Re2 {[%clk 0:01:14]} 54. Kd4 {[%clk 0:01:14]}  f5 {[%clk 0:01:14]} 55. Kd3 {[%clk 0:01:14]}  Re8 {[%clk 0:01:15]} 56. Ra1 {[%clk 0:01:10]}  g4 {[%clk 0:01:15]} 57. Ra6+ {[%clk 0:01:09]}  Kg5 {[%clk 0:01:15]} 58. Ra7 {[%clk 0:01:09]}  g3 {[%clk 0:01:15]} 59. Rg7+ {[%clk 0:01:09]}  Kf4 {[%clk 0:01:15]} 60. Rg6 {[%clk 0:01:09]}  Kf3 {[%clk 0:01:16]} 61. Rg5 {[%clk 0:01:08]}  f4 {[%clk 0:01:16]} 0-1


[Site "https://www.chess.com"]

[Event "Titled Tuesday Blitz August 22 Late 2023"]
[White "Santos Flores, Alberto"]
[Black "laidfrq"]
[WhiteFideId "3601234"]
[WhiteElo "2574"]
[BlackElo "2399"]
[Result "1-0"]
[Round "3"]
[TimeControl "180+1"]
[Date "2023.08.22"]
[WhiteClock "0:00:12"]
[BlackClock "0:00:27"]
[Board "121"]

1. e4 {[%clk 0:03:00]}  c5 {[%clk 0:02:58]} 2. Nf3 {[%clk 0:03:00]}  Nc6 {[%clk 0:02:56]} 3. Nc3 {[%clk 0:02:57]}  e6 {[%clk 0:02:52]} 4. d4 {[%clk 0:02:52]}  cxd4 {[%clk 0:02:53]} 5. Nxd4 {[%clk 0:02:53]}  Qc7 {[%clk 0:02:52]} 6. g3 {[%clk 0:02:53]}  a6 {[%clk 0:02:50]} 7. Bg2 {[%clk 0:02:53]}  h5 {[%clk 0:02:49]} 8. h3 {[%clk 0:02:48]}  h4 {[%clk 0:02:47]} 9. g4 {[%clk 0:02:48]}  Nge7 {[%clk 0:02:43]} 10. O-O {[%clk 0:02:44]}  Ng6 {[%clk 0:02:39]} 11. Nxc6 {[%clk 0:02:38]}  bxc6 {[%clk 0:02:37]} 12. f4 {[%clk 0:02:38]}  e5 {[%clk 0:02:28]} 13. f5 {[%clk 0:02:36]}  Nf4 {[%clk 0:02:28]} 14. Bxf4 {[%clk 0:02:32]}  Bc5+ {[%clk 0:02:25]} 15. Kh1 {[%clk 0:02:29]}  exf4 {[%clk 0:02:24]} 16. Qf3 {[%clk 0:02:26]}  a5 {[%clk 0:02:01]} 17. Qxf4 {[%clk 0:02:21]}  Qxf4 {[%clk 0:02:02]} 18. Rxf4 {[%clk 0:02:21]}  Rb8 {[%clk 0:01:55]} 19. b3 {[%clk 0:02:13]}  Bd4 {[%clk 0:01:53]} 20. Rf3 {[%clk 0:02:13]}  Be5 {[%clk 0:01:49]} 21. Rd1 {[%clk 0:02:05]}  Ke7 {[%clk 0:01:42]} 22. Na4 {[%clk 0:01:54]}  d6 {[%clk 0:01:39]} 23. Bf1 {[%clk 0:01:52]}  Bd7 {[%clk 0:01:35]} 24. c4 {[%clk 0:01:49]}  c5 {[%clk 0:01:33]} 25. Nc3 {[%clk 0:01:49]}  Bc6 {[%clk 0:01:32]} 26. Bg2 {[%clk 0:01:35]}  a4 {[%clk 0:01:15]} 27. bxa4 {[%clk 0:01:32]}  Rb2 {[%clk 0:01:12]} 28. Re3 {[%clk 0:01:16]}  Ra8 {[%clk 0:01:08]} 29. Nd5+ {[%clk 0:00:43]}  Bxd5 {[%clk 0:01:07]} 30. exd5 {[%clk 0:00:44]}  Rxa4 {[%clk 0:01:04]} 31. Rb3 {[%clk 0:00:44]}  Rbxa2 {[%clk 0:01:03]} 32. Rdb1 {[%clk 0:00:40]}  Kf6 {[%clk 0:01:00]} 33. Bf1 {[%clk 0:00:30]}  Rh2+ {[%clk 0:00:58]} 34. Kg1 {[%clk 0:00:30]}  Raa2 {[%clk 0:00:57]} 35. Rd1 {[%clk 0:00:25]}  Bd4+ {[%clk 0:00:54]} 36. Rxd4 {[%clk 0:00:24]}  cxd4 {[%clk 0:00:55]} 37. Rd3 {[%clk 0:00:24]}  Ke5 {[%clk 0:00:54]} 38. Rd1 {[%clk 0:00:24]}  Rhc2 {[%clk 0:00:50]} 39. Re1+ {[%clk 0:00:19]}  Kf6 {[%clk 0:00:49]} 40. Rd1 {[%clk 0:00:20]}  Ke5 {[%clk 0:00:44]} 41. Re1+ {[%clk 0:00:20]}  Kf4 {[%clk 0:00:45]} 42. Rd1 {[%clk 0:00:21]}  Ke3 {[%clk 0:00:42]} 43. Rd3+ {[%clk 0:00:20]}  Ke4 {[%clk 0:00:40]} 44. Rd1 {[%clk 0:00:21]}  Ra4 {[%clk 0:00:37]} 45. Bd3+ {[%clk 0:00:20]}  Ke3 {[%clk 0:00:36]} 46. Bxc2 {[%clk 0:00:21]}  Ra2 {[%clk 0:00:32]} 47. Bd3 {[%clk 0:00:20]}  Ra3 {[%clk 0:00:26]} 48. Bf1 {[%clk 0:00:20]}  d3 {[%clk 0:00:25]} 49. Rxd3+ {[%clk 0:00:13]}  Rxd3 {[%clk 0:00:25]} 50. Bxd3 {[%clk 0:00:14]}  Kxd3 {[%clk 0:00:25]} 51. c5 {[%clk 0:00:14]}  dxc5 {[%clk 0:00:26]} 52. d6 {[%clk 0:00:14]}  c4 {[%clk 0:00:26]} 53. d7 {[%clk 0:00:14]}  c3 {[%clk 0:00:27]} 54. d8=Q+ {[%clk 0:00:15]}  Kc2 {[%clk 0:00:25]} 55. Qxh4 {[%clk 0:00:15]}  Kb2 {[%clk 0:00:25]} 56. Qf2+ {[%clk 0:00:13]}  c2 {[%clk 0:00:25]} 57. Qd4+ {[%clk 0:00:13]}  Kb1 {[%clk 0:00:26]} 58. Qb4+ {[%clk 0:00:13]}  Ka2 {[%clk 0:00:26]} 59. Qc3 {[%clk 0:00:13]}  Kb1 {[%clk 0:00:27]} 60. Qb3+ {[%clk 0:00:13]}  Kc1 {[%clk 0:00:27]} 61. Kf2 {[%clk 0:00:13]}  Kd2 {[%clk 0:00:27]} 62. Qd5+ {[%clk 0:00:13]}  Kc3 {[%clk 0:00:27]} 63. Qc5+ {[%clk 0:00:13]}  Kb2 {[%clk 0:00:27]} 64. Qb4+ {[%clk 0:00:13]}  Ka2 {[%clk 0:00:28]} 65. Qc3 {[%clk 0:00:12]}  Kb1 {[%clk 0:00:27]} 66. Qb3+ {[%clk 0:00:12]} 1-0


[Site "https://www.chess.com"]

[Event "Titled Tuesday Blitz August 22 Late 2023"]
[White "Cmorales2001"]
[Black "Guerra Tulcan, Lenin"]
[BlackFideId "3601382"]
[WhiteElo "2383"]
[BlackElo "2564"]
[Result "1-0"]
[Round "3"]
[TimeControl "180+1"]
[Date "2023.08.22"]
[WhiteClock "0:00:12"]
[BlackClock "0:00:01"]
[Board "124"]

1. e4 {[%clk 0:03:00]}  c5 {[%clk 0:02:58]} 2. Nf3 {[%clk 0:02:59]}  e6 {[%clk 0:02:48]} 3. d3 {[%clk 0:02:57]}  b6 {[%clk 0:02:40]} 4. g3 {[%clk 0:02:54]}  Bb7 {[%clk 0:02:25]} 5. Bg2 {[%clk 0:02:53]}  d6 {[%clk 0:02:26]} 6. O-O {[%clk 0:02:51]}  Nf6 {[%clk 0:02:08]} 7. c3 {[%clk 0:02:48]}  Be7 {[%clk 0:02:07]} 8. Re1 {[%clk 0:02:38]}  O-O {[%clk 0:02:06]} 9. Nbd2 {[%clk 0:02:37]}  Qc7 {[%clk 0:02:02]} 10. a3 {[%clk 0:02:35]}  Nbd7 {[%clk 0:01:56]} 11. a4 {[%clk 0:02:24]}  a6 {[%clk 0:01:55]} 12. Nf1 {[%clk 0:02:23]}  b5 {[%clk 0:01:55]} 13. Bf4 {[%clk 0:02:15]}  Ne5 {[%clk 0:01:54]} 14. d4 {[%clk 0:02:02]}  Nxf3+ {[%clk 0:01:53]} 15. Bxf3 {[%clk 0:02:01]}  e5 {[%clk 0:01:53]} 16. Bg5 {[%clk 0:01:59]}  h6 {[%clk 0:01:52]} 17. Bc1 {[%clk 0:01:42]}  Rfd8 {[%clk 0:01:51]} 18. d5 {[%clk 0:01:41]}  Bf8 {[%clk 0:01:44]} 19. Ne3 {[%clk 0:01:40]}  g6 {[%clk 0:01:44]} 20. c4 {[%clk 0:01:31]}  b4 {[%clk 0:01:44]} 21. h4 {[%clk 0:01:25]}  Bc8 {[%clk 0:01:32]} 22. h5 {[%clk 0:01:23]}  g5 {[%clk 0:01:33]} 23. Ng4 {[%clk 0:01:21]}  Nxh5 {[%clk 0:01:13]} 24. Nxh6+ {[%clk 0:01:09]}  Bxh6 {[%clk 0:01:14]} 25. Bxh5 {[%clk 0:01:10]}  Kg7 {[%clk 0:01:13]} 26. Bg4 {[%clk 0:01:00]}  Rf8 {[%clk 0:01:11]} 27. Kg2 {[%clk 0:00:58]}  f5 {[%clk 0:01:11]} 28. exf5 {[%clk 0:00:57]}  Bxf5 {[%clk 0:01:12]} 29. Bxf5 {[%clk 0:00:50]}  Rxf5 {[%clk 0:01:13]} 30. Qg4 {[%clk 0:00:50]}  Raf8 {[%clk 0:01:12]} 31. Be3 {[%clk 0:00:49]}  Qf7 {[%clk 0:01:10]} 32. Re2 {[%clk 0:00:37]}  Qg6 {[%clk 0:00:54]} 33. Rh1 {[%clk 0:00:35]}  Rf3 {[%clk 0:00:52]} 34. Ree1 {[%clk 0:00:19]}  Qf5 {[%clk 0:00:24]} 35. Qh5 {[%clk 0:00:18]}  Qg6 {[%clk 0:00:23]} 36. Qxg6+ {[%clk 0:00:17]}  Kxg6 {[%clk 0:00:24]} 37. b3 {[%clk 0:00:17]}  Bg7 {[%clk 0:00:19]} 38. Re2 {[%clk 0:00:17]}  R8f7 {[%clk 0:00:16]} 39. Rb1 {[%clk 0:00:17]}  R3f5 {[%clk 0:00:14]} 40. Rh1 {[%clk 0:00:17]}  g4 {[%clk 0:00:14]} 41. Rh4 {[%clk 0:00:17]}  R7f6 {[%clk 0:00:08]} 42. Rxg4+ {[%clk 0:00:17]}  Kf7 {[%clk 0:00:09]} 43. Re1 {[%clk 0:00:17]}  Rg6 {[%clk 0:00:04]} 44. Rxg6 {[%clk 0:00:16]}  Kxg6 {[%clk 0:00:05]} 45. Rh1 {[%clk 0:00:16]}  e4 {[%clk 0:00:05]} 46. Rh4 {[%clk 0:00:16]}  Re5 {[%clk 0:00:04]} 47. Rg4+ {[%clk 0:00:16]}  Kf7 {[%clk 0:00:04]} 48. Rg5 {[%clk 0:00:16]}  Rxg5 {[%clk 0:00:03]} 49. Bxg5 {[%clk 0:00:17]}  Bd4 {[%clk 0:00:03]} 50. Be3 {[%clk 0:00:17]}  Kf6 {[%clk 0:00:01]} 51. Kh3 {[%clk 0:00:17]}  Ke5 {[%clk 0:00:01]} 52. Kg4 {[%clk 0:00:17]}  Bc3 {[%clk 0:00:01]} 53. Bf4+ {[%clk 0:00:16]}  Kf6 {[%clk 0:00:02]} 54. Bxd6 {[%clk 0:00:16]}  Bd4 {[%clk 0:00:02]} 55. Kf4 {[%clk 0:00:13]}  Bxf2 {[%clk 0:00:02]} 56. Kxe4 {[%clk 0:00:14]}  Bd4 {[%clk 0:00:03]} 57. Bf4 {[%clk 0:00:13]}  Kg6 {[%clk 0:00:03]} 58. Be3 {[%clk 0:00:14]}  Bxe3 {[%clk 0:00:01]} 59. Kxe3 {[%clk 0:00:12]}  Kf5 {[%clk 0:00:02]} 60. Kf3 {[%clk 0:00:12]}  Ke5 {[%clk 0:00:01]} 61. g4 {[%clk 0:00:12]} 1-0


[Site "https://www.chess.com"]

[Event "Titled Tuesday Blitz August 22 Late 2023"]
[White "Ovezdurdyyeva, Jemal"]
[Black "Willy, Stephen"]
[WhiteFideId "14001888"]
[BlackFideId "30981468"]
[WhiteElo "2382"]
[BlackElo "2563"]
[Result "0-1"]
[Round "3"]
[TimeControl "180+1"]
[Date "2023.08.22"]
[WhiteClock "0:00:13"]
[BlackClock "0:00:58"]
[Board "125"]

1. e4 {[%clk 0:03:00]}  c6 {[%clk 0:02:55]} 2. d4 {[%clk 0:02:58]}  d5 {[%clk 0:02:56]} 3. Nc3 {[%clk 0:02:58]}  dxe4 {[%clk 0:02:55]} 4. Nxe4 {[%clk 0:02:59]}  Nf6 {[%clk 0:02:55]} 5. Ng3 {[%clk 0:02:59]}  e5 {[%clk 0:02:41]} 6. Be3 {[%clk 0:02:51]}  Ng4 {[%clk 0:02:32]} 7. Nf3 {[%clk 0:02:25]}  Nxe3 {[%clk 0:02:27]} 8. fxe3 {[%clk 0:02:26]}  exd4 {[%clk 0:02:23]} 9. exd4 {[%clk 0:02:23]}  Bd6 {[%clk 0:02:19]} 10. Ne4 {[%clk 0:02:11]}  O-O {[%clk 0:02:13]} 11. Bd3 {[%clk 0:02:03]}  Bc7 {[%clk 0:02:01]} 12. O-O {[%clk 0:01:46]}  Nd7 {[%clk 0:01:53]} 13. Qd2 {[%clk 0:01:23]}  f5 {[%clk 0:01:49]} 14. Neg5 {[%clk 0:01:18]}  Nf6 {[%clk 0:01:49]} 15. Rae1 {[%clk 0:01:14]}  h6 {[%clk 0:01:35]} 16. Ne6 {[%clk 0:01:13]}  Bxe6 {[%clk 0:01:35]} 17. Rxe6 {[%clk 0:01:14]}  Qd5 {[%clk 0:01:31]} 18. Re7 {[%clk 0:00:46]}  Qd6 {[%clk 0:01:26]} 19. Bc4+ {[%clk 0:00:34]}  Kh8 {[%clk 0:01:21]} 20. Re6 {[%clk 0:00:33]}  Qd7 {[%clk 0:01:17]} 21. Nh4 {[%clk 0:00:32]}  Kh7 {[%clk 0:01:10]} 22. Nxf5 {[%clk 0:00:32]}  Rae8 {[%clk 0:01:06]} 23. Rxe8 {[%clk 0:00:28]}  Qxe8 {[%clk 0:01:05]} 24. Re1 {[%clk 0:00:28]}  Qh5 {[%clk 0:01:03]} 25. Qd3 {[%clk 0:00:27]}  Bxh2+ {[%clk 0:01:00]} 26. Kf1 {[%clk 0:00:20]}  Ne4 {[%clk 0:00:59]} 27. Qxe4 {[%clk 0:00:13]}  Rxf5+ {[%clk 0:00:58]} 0-1


[Site "https://www.chess.com"]

[Event "Titled Tuesday Blitz August 22 Late 2023"]
[White "Souleidis, Georgios"]
[Black "Baghdasaryan, Vahe"]
[WhiteFideId "4206827"]
[BlackFideId "13303139"]
[WhiteElo "2561"]
[BlackElo "2376"]
[Result "1-0"]
[Round "3"]
[TimeControl "180+1"]
[Date "2023.08.22"]
[WhiteClock "0:00:21"]
[BlackClock "0:00:17"]
[Board "126"]

1. e4 {[%clk 0:03:00]}  e5 {[%clk 0:02:59]} 2. Nc3 {[%clk 0:02:50]}  Nf6 {[%clk 0:02:58]} 3. d4 {[%clk 0:02:51]}  exd4 {[%clk 0:02:55]} 4. Qxd4 {[%clk 0:02:51]}  Nc6 {[%clk 0:02:55]} 5. Qd3 {[%clk 0:02:52]}  Bb4 {[%clk 0:02:55]} 6. Bd2 {[%clk 0:02:52]}  O-O {[%clk 0:02:54]} 7. O-O-O {[%clk 0:02:52]}  Re8 {[%clk 0:02:55]} 8. Nge2 {[%clk 0:02:52]}  Ne5 {[%clk 0:02:50]} 9. Qg3 {[%clk 0:02:52]}  Nh5 {[%clk 0:02:41]} 10. Qg5 {[%clk 0:02:47]}  Qxg5 {[%clk 0:02:26]} 11. Bxg5 {[%clk 0:02:48]}  h6 {[%clk 0:02:24]} 12. Bd2 {[%clk 0:02:16]}  c6 {[%clk 0:02:12]} 13. h3 {[%clk 0:01:39]}  Nc4 {[%clk 0:02:04]} 14. Be1 {[%clk 0:01:37]}  Bc5 {[%clk 0:01:25]} 15. Nd4 {[%clk 0:01:37]}  Nd6 {[%clk 0:01:11]} 16. f3 {[%clk 0:01:24]}  Nf4 {[%clk 0:00:37]} 17. g3 {[%clk 0:01:17]}  Ne6 {[%clk 0:00:34]} 18. Nb3 {[%clk 0:01:07]}  Be3+ {[%clk 0:00:32]} 19. Kb1 {[%clk 0:01:08]}  Nb5 {[%clk 0:00:14]} 20. Nxb5 {[%clk 0:01:07]}  cxb5 {[%clk 0:00:15]} 21. Bxb5 {[%clk 0:01:07]}  Re7 {[%clk 0:00:15]} 22. h4 {[%clk 0:01:00]}  a6 {[%clk 0:00:15]} 23. Bc4 {[%clk 0:00:57]}  b5 {[%clk 0:00:16]} 24. Bd5 {[%clk 0:00:57]}  Rb8 {[%clk 0:00:15]} 25. Bb4 {[%clk 0:00:57]}  Re8 {[%clk 0:00:13]} 26. Rd3 {[%clk 0:00:50]}  Bb6 {[%clk 0:00:12]} 27. Rhd1 {[%clk 0:00:40]}  Nc7 {[%clk 0:00:11]} 28. Bc5 {[%clk 0:00:22]}  Nxd5 {[%clk 0:00:11]} 29. Rxd5 {[%clk 0:00:23]}  Bc7 {[%clk 0:00:11]} 30. Bd6 {[%clk 0:00:19]}  Bxd6 {[%clk 0:00:11]} 31. Rxd6 {[%clk 0:00:20]}  Re6 {[%clk 0:00:10]} 32. Nc5 {[%clk 0:00:18]}  Rxd6 {[%clk 0:00:09]} 33. Rxd6 {[%clk 0:00:19]}  a5 {[%clk 0:00:05]} 34. Nxd7 {[%clk 0:00:18]}  Ra8 {[%clk 0:00:04]} 35. Nb6 {[%clk 0:00:18]}  Ra6 {[%clk 0:00:02]} 36. Nxc8 {[%clk 0:00:17]}  Rxd6 {[%clk 0:00:01]} 37. Nxd6 {[%clk 0:00:18]}  a4 {[%clk 0:00:01]} 38. Nxb5 {[%clk 0:00:18]}  f5 {[%clk 0:00:02]} 39. exf5 {[%clk 0:00:19]}  g5 {[%clk 0:00:03]} 40. fxg6 {[%clk 0:00:18]}  Kg7 {[%clk 0:00:03]} 41. h5 {[%clk 0:00:19]}  Kf6 {[%clk 0:00:03]} 42. Nc3 {[%clk 0:00:18]}  Ke5 {[%clk 0:00:04]} 43. Nxa4 {[%clk 0:00:15]}  Kd4 {[%clk 0:00:05]} 44. g7 {[%clk 0:00:15]}  Ke3 {[%clk 0:00:06]} 45. g8=Q {[%clk 0:00:15]}  Kxf3 {[%clk 0:00:07]} 46. Qd5+ {[%clk 0:00:14]}  Kg4 {[%clk 0:00:06]} 47. Qd8 {[%clk 0:00:13]}  Kh3 {[%clk 0:00:07]} 48. g4 {[%clk 0:00:13]}  Kg2 {[%clk 0:00:07]} 49. Qh8 {[%clk 0:00:13]}  Kh3 {[%clk 0:00:08]} 50. Qxh6 {[%clk 0:00:13]}  Kh4 {[%clk 0:00:09]} 51. Qe3 {[%clk 0:00:11]}  Kxg4 {[%clk 0:00:08]} 52. h6 {[%clk 0:00:11]}  Kf5 {[%clk 0:00:09]} 53. h7 {[%clk 0:00:11]}  Kg6 {[%clk 0:00:10]} 54. b3 {[%clk 0:00:10]}  Kf7 {[%clk 0:00:11]} 55. Nb2 {[%clk 0:00:11]}  Kg6 {[%clk 0:00:11]} 56. Nd1 {[%clk 0:00:12]}  Kxh7 {[%clk 0:00:10]} 57. Kc1 {[%clk 0:00:13]}  Kg6 {[%clk 0:00:11]} 58. Kd2 {[%clk 0:00:14]}  Kf7 {[%clk 0:00:12]} 59. Qe1 {[%clk 0:00:14]}  Kg6 {[%clk 0:00:13]} 60. Ke2 {[%clk 0:00:15]}  Kh5 {[%clk 0:00:14]} 61. Qf2 {[%clk 0:00:16]}  Kg6 {[%clk 0:00:15]} 62. Qf4 {[%clk 0:00:16]}  Kg7 {[%clk 0:00:14]} 63. Qf5 {[%clk 0:00:16]}  Kh6 {[%clk 0:00:14]} 64. Qg4 {[%clk 0:00:16]}  Kh7 {[%clk 0:00:14]} 65. Qg5 {[%clk 0:00:17]}  Kh8 {[%clk 0:00:14]} 66. Kf3 {[%clk 0:00:18]}  Kh7 {[%clk 0:00:14]} 67. Kf4 {[%clk 0:00:19]}  Kh8 {[%clk 0:00:15]} 68. Kf5 {[%clk 0:00:20]}  Kh7 {[%clk 0:00:16]} 69. Kf6 {[%clk 0:00:20]}  Kh8 {[%clk 0:00:17]} 70. Qg7# {[%clk 0:00:21]} 1-0


[Site "https://www.chess.com"]

[Event "Titled Tuesday Blitz August 22 Late 2023"]
[White "whiteglovethief"]
[Black "Erdogan, Anil Berk"]
[BlackFideId "6348173"]
[WhiteElo "2356"]
[BlackElo "2558"]
[Result "1-0"]
[Round "3"]
[TimeControl "180+1"]
[Date "2023.08.22"]
[WhiteClock "0:02:27"]
[BlackClock "0:01:51"]
[Board "129"]

1. d4 {[%clk 0:02:52]}  Nf6 {[%clk 0:02:59]} 2. c4 {[%clk 0:02:51]}  c5 {[%clk 0:02:58]} 3. d5 {[%clk 0:02:51]}  e6 {[%clk 0:02:59]} 4. Nc3 {[%clk 0:02:50]}  exd5 {[%clk 0:03:00]} 5. cxd5 {[%clk 0:02:50]}  d6 {[%clk 0:03:00]} 6. e4 {[%clk 0:02:49]}  g6 {[%clk 0:03:01]} 7. f4 {[%clk 0:02:49]}  Bg7 {[%clk 0:02:59]} 8. e5 {[%clk 0:02:49]}  dxe5 {[%clk 0:02:56]} 9. fxe5 {[%clk 0:02:49]}  Ng4 {[%clk 0:02:55]} 10. Bb5+ {[%clk 0:02:47]}  Kf8 {[%clk 0:02:36]} 11. e6 {[%clk 0:02:46]}  Ne5 {[%clk 0:02:26]} 12. Nf3 {[%clk 0:02:40]}  fxe6 {[%clk 0:02:20]} 13. O-O {[%clk 0:02:37]}  Nxf3+ {[%clk 0:01:54]} 14. Qxf3+ {[%clk 0:02:35]}  Ke7 {[%clk 0:01:51]} 15. Bg5+ {[%clk 0:02:27]} 1-0


[Site "https://www.chess.com"]

[Event "Titled Tuesday Blitz August 22 Late 2023"]
[White "reevecanada"]
[Black "Sanchez Castillo, Sarai Carolina"]
[BlackFideId "3900754"]
[WhiteElo "2549"]
[BlackElo "2331"]
[Result "1-0"]
[Round "3"]
[TimeControl "180+1"]
[Date "2023.08.22"]
[WhiteClock "0:01:41"]
[BlackClock "0:00:00"]
[Board "134"]

1. e4 {[%clk 0:03:00]}  e6 {[%clk 0:02:59]} 2. Nf3 {[%clk 0:02:52]}  d5 {[%clk 0:02:57]} 3. Nc3 {[%clk 0:02:52]}  d4 {[%clk 0:02:56]} 4. Ne2 {[%clk 0:02:52]}  c5 {[%clk 0:02:57]} 5. d3 {[%clk 0:02:52]}  Nc6 {[%clk 0:02:57]} 6. g3 {[%clk 0:02:53]}  e5 {[%clk 0:02:53]} 7. Bg2 {[%clk 0:02:53]}  Be7 {[%clk 0:02:51]} 8. O-O {[%clk 0:02:54]}  g5 {[%clk 0:02:41]} 9. c3 {[%clk 0:02:50]}  h6 {[%clk 0:02:37]} 10. Qc2 {[%clk 0:02:48]}  Be6 {[%clk 0:02:37]} 11. a3 {[%clk 0:02:47]}  Qd7 {[%clk 0:02:34]} 12. c4 {[%clk 0:02:45]}  f6 {[%clk 0:02:18]} 13. Bd2 {[%clk 0:02:44]}  h5 {[%clk 0:02:18]} 14. h4 {[%clk 0:02:41]}  gxh4 {[%clk 0:02:05]} 15. Nxh4 {[%clk 0:02:40]}  Nh6 {[%clk 0:01:50]} 16. f4 {[%clk 0:02:36]}  Bg4 {[%clk 0:01:47]} 17. Rf2 {[%clk 0:02:28]}  O-O-O {[%clk 0:01:46]} 18. f5 {[%clk 0:02:28]}  Rdg8 {[%clk 0:01:44]} 19. Ng6 {[%clk 0:02:28]}  Rh7 {[%clk 0:01:43]} 20. b4 {[%clk 0:02:27]}  Nf7 {[%clk 0:01:34]} 21. Qa4 {[%clk 0:02:23]}  Kb8 {[%clk 0:01:29]} 22. Rb1 {[%clk 0:02:19]}  Bd6 {[%clk 0:01:13]} 23. Nc1 {[%clk 0:02:12]}  Qe8 {[%clk 0:00:50]} 24. Qb5 {[%clk 0:02:00]}  cxb4 {[%clk 0:00:44]} 25. axb4 {[%clk 0:01:59]}  Ne7 {[%clk 0:00:44]} 26. Nxe7 {[%clk 0:01:49]}  Qxb5 {[%clk 0:00:40]} 27. Nxg8 {[%clk 0:01:49]}  Qa4 {[%clk 0:00:30]} 28. Nxf6 {[%clk 0:01:48]}  Rh8 {[%clk 0:00:00]} 29. Be1 {[%clk 0:01:41]} 1-0


[Site "https://www.chess.com"]

[Event "Titled Tuesday Blitz August 22 Late 2023"]
[White "Fominykh, Maria"]
[Black "Roebers, Eline"]
[WhiteFideId "4142411"]
[BlackFideId "1058401"]
[WhiteElo "2327"]
[BlackElo "2547"]
[Result "0-1"]
[Round "3"]
[TimeControl "180+1"]
[Date "2023.08.22"]
[WhiteClock "0:00:00"]
[BlackClock "0:01:13"]
[Board "136"]

1. d4 {[%clk 0:03:00]}  f5 {[%clk 0:02:58]} 2. Bg5 {[%clk 0:03:00]}  h6 {[%clk 0:02:58]} 3. Bh4 {[%clk 0:03:00]}  g5 {[%clk 0:02:57]} 4. Bg3 {[%clk 0:03:00]}  Nf6 {[%clk 0:02:57]} 5. e3 {[%clk 0:03:00]}  Bg7 {[%clk 0:02:57]} 6. h4 {[%clk 0:03:00]}  g4 {[%clk 0:02:55]} 7. Bd3 {[%clk 0:03:00]}  d6 {[%clk 0:02:54]} 8. c4 {[%clk 0:02:54]}  O-O {[%clk 0:02:51]} 9. Nc3 {[%clk 0:02:52]}  Qe8 {[%clk 0:02:50]} 10. d5 {[%clk 0:02:32]}  Nh5 {[%clk 0:02:45]} 11. Nge2 {[%clk 0:02:30]}  Na6 {[%clk 0:02:44]} 12. Qd2 {[%clk 0:02:16]}  c6 {[%clk 0:02:37]} 13. O-O-O {[%clk 0:02:04]}  Bd7 {[%clk 0:02:36]} 14. f3 {[%clk 0:01:39]}  Nxg3 {[%clk 0:02:28]} 15. Nxg3 {[%clk 0:01:39]}  Rc8 {[%clk 0:02:27]} 16. dxc6 {[%clk 0:01:37]}  Rxc6 {[%clk 0:02:17]} 17. fxg4 {[%clk 0:01:33]}  fxg4 {[%clk 0:02:14]} 18. Kb1 {[%clk 0:01:11]}  Nc5 {[%clk 0:02:07]} 19. Bc2 {[%clk 0:01:09]}  a6 {[%clk 0:02:05]} 20. h5 {[%clk 0:01:05]}  b5 {[%clk 0:02:04]} 21. Bg6 {[%clk 0:00:57]}  Qd8 {[%clk 0:01:57]} 22. cxb5 {[%clk 0:00:50]}  axb5 {[%clk 0:01:56]} 23. Nd5 {[%clk 0:00:46]}  Na4 {[%clk 0:01:51]} 24. Nb4 {[%clk 0:00:35]}  Rc5 {[%clk 0:01:46]} 25. Nd3 {[%clk 0:00:34]}  Rc4 {[%clk 0:01:41]} 26. Rhf1 {[%clk 0:00:19]}  Rxf1 {[%clk 0:01:29]} 27. Rxf1 {[%clk 0:00:18]}  Be6 {[%clk 0:01:29]} 28. Nf5 {[%clk 0:00:16]}  Qa8 {[%clk 0:01:22]} 29. Nxe7+ {[%clk 0:00:14]}  Kh8 {[%clk 0:01:21]} 30. Nf4 {[%clk 0:00:06]}  Rxf4 {[%clk 0:01:16]} 31. Rxf4 {[%clk 0:00:04]}  Nxb2 {[%clk 0:01:16]} 32. a4 {[%clk 0:00:03]}  Nxa4 {[%clk 0:01:15]} 33. Be4 {[%clk 0:00:00]}  Nc3+ {[%clk 0:01:13]} 0-1


[Site "https://www.chess.com"]